lending/lending_fUSD_20240111
["ID","MTS","AMOUNT","RATE_DAILY","PERIOD"]
[311280772,1705014640685,-303617.49742378,0.0003,4]
[311280773,1705014640695,-700.00338148,0.0003,2]
[311280774,1705014640704,-311.01234172,0.0003,2]
[311280777,1705014640722,-189.89374987,0.0003,2]
[311280779,1705014640735,-581.6237216,0.0003,2]
[311280781,1705014640745,-351.05725836,0.0003,2]
[311280783,1705014640756,-308366.93329374,0.0003,4]
[311280785,1705014640767,-219.62752548,0.0003,4]
[311280787,1705014640777,-72797.28205453,0.0003,4]
[311280789,1705014640788,-1000.0,0.0003,2]
[311280791,1705014640798,-2390.50140447,0.000301,14]
[311280793,1705014640807,-6727.70426953,0.000301,2]
[311280795,1705014640818,-400.0,0.00030129,2]
[311280797,1705014640828,-153.84,0.00030137,2]
[311280799,1705014640838,-10000.0,0.00030137,2]
[311280801,1705014640849,-155.0,0.00030137,2]
[311280803,1705014640860,-600.0,0.00030243,2]
[311280805,1705014640869,-167.62,0.00030268,2]
[311280807,1705014640880,-6032.02059648,0.00030536,2]
[311280809,1705014640891,-825.74,0.00030616,2]
[311280811,1705014640901,-975.22,0.00030674,2]
[311280813,1705014640910,-1399.23471087,0.00030755,5]
[311280815,1705014640920,-157.67,0.00030819,2]
[311280817,1705014640931,-202.0,0.0003086,2]
[311280819,1705014640941,-152.9405965,0.000309,2]
[311280821,1705014640950,-152.94059647,0.000309,2]
[311280823,1705014640960,-152.94059647,0.000309,2]
[311280825,1705014640970,-152.94059647,0.000309,2]
[311280827,1705014640982,-152.94059647,0.000309,2]
[311280829,1705014640991,-152.94059647,0.000309,2]
[311280832,1705014641002,-700.0,0.00031,3]
[311280834,1705014641013,-153.84,0.0003105,2]
[311280836,1705014641026,-433.16359983,0.00031252,2]
[311280837,1705014641036,-164.39,0.00031312,2]
[311280839,1705014641047,-805.03,0.00031397,2]
[311280842,1705014641057,-304.91799082,0.000314,30]
[311280844,1705014641066,-8472.12316007,0.0003143,4]
[311280845,1705014641076,-152.13,0.00031507,2]
[311280847,1705014641089,-155.0,0.00031507,2]
[311280850,1705014641100,-202.0,0.0003157,3]
[311280852,1705014641110,-6032.02059648,0.00031627,3]
[311280854,1705014641120,-165.05,0.00031644,2]
[311280856,1705014641130,-975.22,0.00031653,2]
[311280858,1705014641139,-1417.73900732,0.000317,2]
[311280860,1705014641149,-502.93674531,0.000317,2]
[311280861,1705014641158,-150.0,0.00031786,2]
[311280864,1705014641169,-150.0,0.00031786,2]
[311280866,1705014641180,-46292.6609214,0.000318,2]
[311280868,1705014641194,-13669.7759786,0.000318,2]
[311280870,1705014641204,-318803.573239,0.000318,3]
[311280872,1705014641214,-167.62,0.00031933,2]
[311280874,1705014641223,-152.94059647,0.00031939,2]
[311280901,1705014641457,-153.84,0.00031963,2]
[311280903,1705014641467,-155.0,0.00032,2]
[311280905,1705014641477,-173559.82731972,0.00032,2]
[311280907,1705014641487,-157.67,0.00032089,2]
[311280909,1705014641497,-1022.54402972,0.000321,2]
[311280911,1705014641507,-202.0,0.00032281,4]
[311280913,1705014641518,-158.73998173,0.000323,2]
[311280915,1705014641528,-1399.23471087,0.00032326,6]
[311280917,1705014641539,-1000.0,0.000325,2]
[311280918,1705014641550,-975.22,0.00032631,2]
[311280921,1705014641560,-6032.02059648,0.00032718,4]
[311280923,1705014641570,-800.0,0.00032736,5]
[311280925,1705014641581,-1440.71562,0.000328,2]
[311280927,1705014641593,-190.0552602,0.00032876,7]
[311280929,1705014641602,-277.39945164,0.00032876,7]
[311280931,1705014641613,-158.76448784,0.00032876,7]
[311280933,1705014641622,-205.75683171,0.00032876,7]
[311280935,1705014641633,-301.13518678,0.00032876,7]
[311280937,1705014641643,-308.22161294,0.00032876,7]
[311280939,1705014641655,-150.82652678,0.00032876,7]
[311280941,1705014641665,-153.84,0.00032877,2]
[311280943,1705014641677,-858.31,0.00032877,15]
[311280945,1705014641686,-155.0,0.00032877,2]
[311280947,1705014641697,-151.27,0.0003288,2]
[311280948,1705014641706,-225.53143012,0.00032897,4]
[311280950,1705014641717,-200.0,0.00032897,2]
[311280952,1705014641726,-1440.71562,0.0003295,2]
[311280954,1705014641737,-202.0,0.00032992,6]
[311280956,1705014641746,-600.0,0.00032992,2]
[311280958,1705014641755,-164.73,0.00032999,2]
[311280960,1705014641765,-6394.88863752,0.00033,2]
[311280977,1705014641911,-33950.23959047,0.00033,2]
[311281006,1705014642182,-519.39191973,0.00033,2]
[311281009,1705014642197,-22779.34021764,0.00033,2]
[311281051,1705014642310,197.43,0.00021877,2]
[311281090,1705014642500,-34771.38565756,0.00033,2]
[311281094,1705014642510,-15154.588415,0.00033,2]
[311281097,1705014642520,-816.44132257,0.00033,2]
[311281100,1705014642529,-1460.57299565,0.00033,2]
[311281103,1705014642538,-750.0,0.00033,3]
[311281106,1705014642548,-2000.0,0.00033,2]
[311281109,1705014642557,-1440.71562,0.00033,2]
[311281112,1705014642566,-1440.71562,0.00033,2]
[311281114,1705014642576,-335.09763497,0.00033,2]
[311281116,1705014642585,-335.09763497,0.00033,2]
[311281118,1705014642593,-335.09763497,0.00033,2]
[311281120,1705014642603,-335.09763497,0.00033,2]
[311281122,1705014642612,-335.09763497,0.00033,2]
[311281125,1705014642620,-335.09763497,0.00033,2]
[311281128,1705014642629,-335.09763497,0.00033,2]
[311281131,1705014642639,-335.09763497,0.00033,2]
[311281134,1705014642647,-335.09763497,0.00033,2]
[311281136,1705014642656,-335.09763497,0.00033,2]
[311281139,1705014642666,-335.09763497,0.00033,2]
[311281142,1705014642675,-335.09763497,0.00033,2]
[311281145,1705014642684,-335.09763497,0.00033,2]
[311281148,1705014642693,-335.09763497,0.00033,2]
[311281151,1705014642705,-335.09763497,0.00033,2]
[311281154,1705014642715,-335.09763497,0.00033,2]
[311281157,1705014642724,-335.09763497,0.00033,2]
[311281160,1705014642733,-335.09763497,0.00033,2]
[311281163,1705014642742,-335.09763497,0.00033,2]
[311281166,1705014642752,-152.11314518,0.00033,2]
[311281171,1705014642763,-182.98448979,0.00033,2]
[311281174,1705014642772,-335.09763497,0.00033,2]
[311281177,1705014642781,-335.09763497,0.00033,2]
[311281180,1705014642794,-335.09763497,0.00033,2]
[311281183,1705014642804,-335.09763497,0.00033,2]
[311281187,1705014642814,-335.09763497,0.00033,2]
[311281191,1705014642824,-335.09763497,0.00033,2]
[311281194,1705014642834,-335.09763497,0.00033,2]
[311281197,1705014642843,-335.09763497,0.00033,2]
[311281200,1705014642852,-335.09763497,0.00033,2]
[311281202,1705014642863,-335.09763497,0.00033,2]
[311281204,1705014642872,-335.09763497,0.00033,2]
[311281206,1705014642883,-335.09763497,0.00033,2]
[311281209,1705014642893,-335.09763497,0.00033,2]
[311281210,1705014642902,-335.09763497,0.00033,2]
[311281213,1705014642911,-335.09763497,0.00033,2]
[311281215,1705014642921,-335.09763497,0.00033,2]
[311281216,1705014642931,-335.09763497,0.00033,2]
[311281219,1705014642941,-335.09763497,0.00033,2]
[311281221,1705014642952,-335.09763497,0.00033,2]
[311281223,1705014642962,-335.09763497,0.00033,2]
[311281225,1705014642972,-335.09763497,0.00033,2]
[311281227,1705014642983,-335.09763497,0.00033,2]
[311281229,1705014642993,-335.09763497,0.00033,2]
[311281231,1705014643004,-335.09763497,0.00033,2]
[311281233,1705014643014,-335.09763497,0.00033,2]
[311281235,1705014643024,-335.09763497,0.00033,2]
[311281237,1705014643033,-335.09763497,0.00033,2]
[311281239,1705014643042,-335.09763497,0.00033,2]
[311281241,1705014643051,-335.09763497,0.00033,2]
[311281242,1705014643061,-335.09763497,0.00033,2]
[311281243,1705014643071,-325.87287949,0.00033,2]
[311281244,1705014643080,-325.87287949,0.00033,2]
[311281245,1705014643089,-1440.71563,0.0003311,2]
[311281246,1705014643098,-1440.71562,0.0003326,2]
[311281247,1705014643106,-1118.96259597,0.00033326,2]
[311281248,1705014643116,-200.0,0.00033356,7]
[311281249,1705014643125,-152.94059647,0.00033445,2]
[311281250,1705014643134,-400.0,0.00033476,2]
[311281252,1705014643143,-167.62,0.00033598,2]
[311281254,1705014643151,-975.22,0.0003361,2]
[311281256,1705014643160,-805.03,0.0003366,2]
[311281258,1705014643169,-202.0,0.00033703,7]
[311281260,1705014643178,-153.84,0.0003379,2]
[311281262,1705014643188,-6032.02059648,0.00033809,6]
[311281264,1705014643196,-2800.23,0.00033844,2]
[311281266,1705014643206,-5509.79,0.00033844,2]
[311281268,1705014643215,-412.88,0.00033844,30]
[311281270,1705014643224,-13680.91633801,0.00033844,2]
[311281273,1705014643244,-3042.61271831,0.00033844,2]
[311281276,1705014643264,-1383.76094368,0.00033844,2]
[311281278,1705014643273,-596.44082621,0.00033844,2]
[311281545,1705014645779,-165.97418147,0.000229,2]
[311281547,1705014645788,-232.47873125,0.000229,2]
[311281911,1705014668730,23900.0,0.00021868,2]
[311281915,1705014670835,2705.0,0.00021868,2]
[311281965,1705014784078,200.0,0.00021868,2]
[311281968,1705014874537,1200.0,0.00025,10]
[311281971,1705014943744,2000.0,0.00021863,2]
[311281973,1705014969774,850.81,0.00021863,2]
[311281985,1705015638105,-252.59363903,0.00022879,2]
[311281986,1705015638125,-365.86403182,0.0002288,2]
[311282040,1705015831553,-418.95927661,0.00022871,2]
[311282041,1705015831563,-155.0,0.00022872,2]
[311282042,1705015831574,-563.0,0.00022872,2]
[311282043,1705015831584,-472.59679348,0.00022873,2]
[311282044,1705015831594,-212.66076805,0.00022874,2]
[311282045,1705015831603,-548.05716892,0.00022879,2]
[311282046,1705015831615,-9962.7811031,0.00022879,2]
[311282047,1705015831625,-2533.21800876,0.0002288,2]
[311282048,1705015831635,-666.30487827,0.0002288,2]
[311282049,1705015831645,-5436.16739237,0.00022897,2]
[311282050,1705015831655,-1708.85640368,0.00022898,2]
[311282051,1705015831664,-724.24,0.00024392,2]
[311282052,1705015831674,-155.0,0.00024657,2]
[311282053,1705015831683,-550.0,0.00025,3]
[311282054,1705015831693,-483.14840147,0.00025,2]
[311282055,1705015831703,-200.0,0.00025,2]
[311282056,1705015831712,-508.04025934,0.00025,2]
[311282057,1705015831722,-322.3974793,0.00025,2]
[311282058,1705015831732,-1581.98629386,0.00025,2]
[311282059,1705015831741,-600.0,0.00027,3]
[311282060,1705015831751,-158.12004141,0.00027152,2]
[311282061,1705015831808,-380.49190557,0.00027152,2]
[311282071,1705015832067,-3.71805302,0.00027152,2]
[311282073,1705015832077,-725.85906321,0.00027198,2]
[311282075,1705015832086,-114.13998475,0.000276,2]
[311282077,1705015832102,-40.86001525,0.000276,2]
[311282079,1705015832111,-202.0,0.0002786,2]
[311282081,1705015832120,-403.24173453,0.00028569,2]
[311282084,1705015832136,-96.75826547,0.00028569,2]
[311282086,1705015832145,-353.24173453,0.000286,2]
[311282088,1705015832157,-266.12063515,0.000286,2]
[311282090,1705015832172,-4371.34425464,0.000286,2]
[311282092,1705015832183,-3521.01606234,0.000286,2]
[311282097,1705015837786,-155.0,0.000276,2]
[311282098,1705015837799,-1331.027098,0.000286,2]
[311282099,1705015837814,-970.30246952,0.000286,2]
[311282100,1705015837840,-15245.94774582,0.000286,2]
[311282101,1705015837853,-2000.0,0.00028612,2]
[311282102,1705015837866,-202.0,0.00028706,3]
[311282103,1705015837878,-150.0,0.00028929,2]
[311282104,1705015837890,-250.0,0.0002893,2]
[311282105,1705015837902,-1000.0,0.0002893,2]
[311282106,1705015837913,-23900.0,0.00028951,2]
[311282107,1705015837925,-155.0,0.0002897,2]
[311282108,1705015837936,-650.0,0.00029,3]
[311282109,1705015837948,-499.99,0.00029,2]
[311282110,1705015837959,-195.04,0.00029096,2]
[311282111,1705015837971,-250.0,0.00029117,2]
[311282112,1705015837983,-542.33,0.00029416,2]
[311282113,1705015837994,-123.73964882,0.00029436,2]
[311282115,1705015838038,-40.65035118,0.00029436,2]
[311282117,1705015838050,-202.0,0.00029551,5]
[311282119,1705015838061,-135.9257407,0.00029899,2]
[311282120,1705015838078,-21.8042593,0.00029899,2]
[311282121,1705015838090,-1063.71193991,0.0003,2]
[311282122,1705015838119,-8558.95297331,0.0003,2]
[311282123,1705015838131,-155.0,0.0003,2]
[311282124,1705015838144,-2734.96538905,0.00030036,2]
[311282126,1705015838157,-1046.1504,0.00030037,2]
[311282128,1705015838169,-195.04,0.00030074,2]
[311282131,1705015838181,-10000.0,0.00030137,2]
[311282133,1705015838192,-202.0,0.00030397,6]
[311282135,1705015838206,-817.43473583,0.00030757,3]
[311282137,1705015838217,-167.62,0.00030849,2]
[311282140,1705015838228,-700.0,0.00031,3]
[311282142,1705015838239,-195.04,0.00031053,2]
[311282144,1705015838252,-202.0,0.00031243,8]
[311282146,1705015838263,-165.05,0.00031644,2]
[311282149,1705015838277,-542.33,0.0003168,2]
[311282151,1705015838291,-3295.8524,0.000319,7]
[311282153,1705015838303,-1572.87627363,0.00031998,2]
[311282155,1705015838315,-160.35626993,0.00031998,4]
[311282158,1705015838330,-363.56577485,0.00031998,4]
[311282160,1705015838341,-254.89044166,0.00031998,4]
[311282162,1705015838353,-307.05969727,0.00031998,4]
[311282165,1705015838367,-306.84466942,0.00031998,4]
[311282167,1705015838380,-364.99858209,0.00031998,4]
[311282169,1705015838393,-296.05496146,0.00031998,2]
[311282172,1705015838407,-1427.52221944,0.00031998,4]
[311282174,1705015838420,-201.12990906,0.00031998,4]
[311282176,1705015838431,-251.99196184,0.00031998,4]
[311282178,1705015838443,-618.39,0.00031999,2]
[311282180,1705015838455,-239.65,0.00031999,2]
[311282182,1705015838464,-239.65,0.00031999,2]
[311282184,1705015838474,-239.65,0.00031999,2]
[311282187,1705015838483,-239.65,0.00031999,2]
[311282189,1705015838493,-239.65,0.00031999,2]
[311282191,1705015838503,-239.65,0.00031999,2]
[311282193,1705015838513,-239.65,0.00031999,2]
[311282195,1705015838523,-155.0,0.00032,2]
[311282197,1705015838533,-14481.4577496,0.00032,2]
[311282199,1705015838546,-159078.36957012,0.00032,2]
[311282201,1705015838555,-687.67126358,0.00032008,4]
[311282203,1705015838564,-153.84,0.00032029,2]
[311282235,1705015838862,-195.04,0.00032031,2]
[311282239,1705015838892,-202.0,0.00032089,9]
[311282242,1705015838909,-1000.0,0.000322,2]
[311282244,1705015838919,-158.73998173,0.000323,2]
[311282246,1705015838929,-164.43,0.00032488,2]
[311282248,1705015838939,-1000.0,0.00032546,2]
[311282250,1705015838949,-777.40112,0.00032698,2]
[311282252,1705015838959,-349.80867777,0.00032698,6]
[311282253,1705015838968,-800.0,0.00032736,5]
[311282255,1705015838978,-777.40112,0.00032798,2]
[311282258,1705015838990,-876.1,0.00032877,15]
[311282260,1705015839000,-777.40112,0.00032898,2]
[311282262,1705015839011,-1000.0,0.00032898,2]
[311282264,1705015839022,-1000.0,0.000329,7]
[311282265,1705015839033,-202.0,0.00032935,11]
[311282267,1705015839044,-530.31943851,0.00032998,2]
[311282270,1705015839054,-161.34487123,0.00032998,4]
[311282271,1705015839065,-158.36302786,0.00032998,4]
[311282273,1705015839076,-536.80126056,0.00032998,4]
[311282276,1705015839085,-1855.92321577,0.00032998,4]
[311282278,1705015839095,-313.44611819,0.00032998,4]
[311282280,1705015839105,-1181.59003143,0.00032998,120]
[311282282,1705015839117,-1393.53159351,0.00032998,4]
[311282284,1705015839128,-777.40112,0.00032998,2]
[311282286,1705015839140,-4256.57228959,0.00032999,4]
[311282288,1705015839150,-282.64689268,0.00032999,4]
[311282290,1705015839160,-299.93588338,0.00032999,4]
[311282292,1705015839170,-348.169059,0.00032999,4]
[311282294,1705015839180,-234.53276279,0.00032999,4]
[311282296,1705015839191,-153.84,0.00033,2]
[311282297,1705015839201,-750.0,0.00033,3]
[311282300,1705015839210,-195.04,0.0003301,2]
[311282302,1705015839219,-777.40112,0.00033098,2]
[311282304,1705015839228,-777.40112,0.00033198,2]
[311282306,1705015839238,-777.40112,0.00033298,2]
[311282308,1705015839246,-200.0,0.00033346,10]
[311282309,1705015839256,-800.0,0.00033346,5]
[311282312,1705015839265,-200.0,0.00033346,7]
[311282313,1705015839274,-152.13,0.00033384,2]
[311282316,1705015839283,-777.40112,0.00033398,2]
[311282317,1705015839291,-349.80867771,0.00033441,6]
[311282320,1705015839301,-777.40112,0.00033498,2]
[311282322,1705015839310,-7843.3203644,0.0003359,5]
[311282324,1705015839319,-777.40112,0.00033598,2]
[311282326,1705015839329,-1000.0,0.000336,7]
[311282328,1705015839338,-222.13842387,0.00033657,4]
[311282330,1705015839348,-185.57160075,0.00033658,4]
[311282332,1705015839357,-200.0,0.00033727,10]
[311282334,1705015839369,-800.0,0.00033727,5]
[311282336,1705015839380,-268.78169609,0.00033779,6]
[311282338,1705015839392,-968.587,0.00033779,6]
[311282340,1705015839403,-271.708502,0.00033779,6]
[311282342,1705015839414,-3385.16938343,0.00033779,6]
[311282345,1705015839433,-18582.6469,0.00033779,6]
[311282347,1705015839448,-26699.23184156,0.00033779,6]
[311282349,1705015839459,-1804.00008,0.00033779,6]
[311282651,1705015842622,-550.0,0.00025,3]
[311282654,1705015842632,-388.81521508,0.00027,3]
[311282680,1705015842839,-211.18478492,0.00027,3]
[311282681,1705015842848,-155.0,0.0003034,2]
[311282684,1705015842858,-231.0354453,0.0003171,2]
[311282686,1705015842867,-1109.62317078,0.00033779,6]
[311282706,1705015843046,-1813.49397694,0.00033779,6]
[311282708,1705015843057,-202.0,0.0003378,12]
[311282710,1705015843066,-6287.76923727,0.00033789,2]
[311282827,1705015845764,-200.0,0.00025,2]
[311282829,1705015845773,-322.3974793,0.00025,2]
[311282831,1705015845782,-650.0,0.00029,3]
[311282833,1705015845792,-700.0,0.00031,3]
[311282835,1705015845801,-2125.50941594,0.00033778,2]
[311282837,1705015845810,-206.05289724,0.00033778,4]
[311282839,1705015845820,-155.0,0.00033778,4]
[311282841,1705015845831,-38485.77577018,0.00033789,2]
[311282844,1705015845844,-4639.4,0.00033789,2]
[311282845,1705015845873,-396.97,0.00033789,2]
[311282909,1705016843094,-932.80587925,0.00025438,2]
[311282910,1705016843114,-1311.84329185,0.00025439,2]
[311282928,1705017031792,-255.8730365,0.00025438,2]
[311282929,1705017031804,-316.39842106,0.00025438,2]
[311282930,1705017031816,-939.02969699,0.00025438,2]
[311282931,1705017031828,-70.68513931,0.00025438,2]
[311282932,1705017031837,-495.04941045,0.00025439,2]
[311282933,1705017031849,-12.99084889,0.00025439,2]
[311282934,1705017031858,-200.0,0.00025439,2]
[311282935,1705017031868,-5436.16739237,0.0002545,2]
[311282936,1705017031878,-559.19420109,0.00025452,2]
[311282937,1705017031889,-156.31473598,0.00025722,2]
[311282938,1705017031899,-736.2,0.00025823,2]
[311282939,1705017031909,-621.97189106,0.00025823,2]
[311282940,1705017031921,-92.33810894,0.00025823,2]
[311282941,1705017031930,-737.82,0.00026222,2]
[311282942,1705017031940,-518.08,0.00026912,2]
[311282943,1705017031953,-398.55872022,0.00027168,2]
[311282944,1705017031964,-150.99,0.00027168,2]
[311282945,1705017031974,-150.0,0.00027169,2]
[311282946,1705017031983,-202.33,0.00027169,2]
[311282947,1705017031993,-2939.83222642,0.00027169,2]
[311282948,1705017032013,-783.78704333,0.00027169,2]
[311282949,1705017032025,-874.68453933,0.00027169,2]
[311282950,1705017032049,-327.93619092,0.00027169,2]
[311282951,1705017032058,-310.33718945,0.0002717,2]
[311282952,1705017032067,-1154.62,0.0002717,2]
[311282953,1705017032076,-250.0,0.000274,2]
[311282954,1705017032085,-592.71420635,0.00027454,2]
[311282955,1705017032094,-150.77704,0.000275,2]
[311282956,1705017032103,-216.96084575,0.00028,2]
[311282957,1705017032113,-658.66970858,0.00028312,2]
[311282958,1705017032123,-155.0,0.00028598,2]
[311282959,1705017032132,-521.17558197,0.00028598,2]
[311282960,1705017032142,-620.48589227,0.00028599,2]
[311282961,1705017032152,-499.99,0.00028599,2]
[311282962,1705017032161,-531.79797059,0.000286,2]
[311282963,1705017032170,-26417.0,0.000286,2]
[311282964,1705017032179,-151.58,0.0002862,2]
[311282965,1705017032188,-176.84,0.00028655,2]
[311282966,1705017032198,-164.43,0.00028667,2]
[311282967,1705017032207,-685.49,0.00028667,2]
[311282968,1705017032217,-600.0,0.00028775,2]
[311282969,1705017032226,-5331.2,0.00028775,2]
[311282970,1705017032235,-23900.0,0.00028775,2]
[311282971,1705017032245,-150.0,0.00028775,2]
[311282972,1705017032257,-290.41,0.00028802,2]
[311282973,1705017032267,-250.0,0.00028826,2]
[311282974,1705017032276,-250.0,0.00028834,2]
[311282975,1705017032285,-182.27,0.00028835,2]
[311282976,1705017032294,-3604.35,0.00028851,2]
[311282977,1705017032304,-2000.0,0.00028854,2]
[311282978,1705017032313,-150.0,0.00028866,2]
[311282979,1705017032323,-250.0,0.00028899,2]
[311282980,1705017032333,-164.39,0.00028912,2]
[311282981,1705017032342,-155.43,0.00028991,2]
[311282982,1705017032352,-1358.92,0.00029005,2]
[311282983,1705017032362,-155.43,0.0002907,2]
[311282984,1705017032373,-1000.0,0.00029098,2]
[311282985,1705017032382,-155.43,0.0002915,2]
[311282986,1705017032392,-518.08,0.00029176,2]
[311282987,1705017032402,-155.43,0.00029229,2]
[311282988,1705017032604,-155.43,0.00029309,2]
[311282989,1705017032657,-155.43,0.00029388,2]
[311282990,1705017032667,-155.43,0.00029468,2]
[311282991,1705017032676,-155.43,0.00029547,2]
[311282992,1705017032686,-155.43,0.00029627,2]
[311282993,1705017032696,-176.84,0.00029633,2]
[311282994,1705017032705,-155.43,0.00029706,2]
[311282995,1705017032714,-155.43,0.00029786,2]
[311282996,1705017032724,-155.43,0.00029865,2]
[311282997,1705017032733,-229.1236873,0.000299,2]
[311282998,1705017032742,-155.43,0.00029945,2]
[311282999,1705017032751,-9622.66491322,0.0003,2]
[311283000,1705017032760,-2734.96538905,0.0003,2]
[311283001,1705017032769,-1572.87627363,0.0003,2]
[311283002,1705017032780,-155.0,0.0003,2]
[311283003,1705017032790,-155.43,0.00030024,2]
[311283004,1705017032800,-155.43,0.00030104,2]
[311283005,1705017032809,-10000.0,0.00030137,2]
[311283006,1705017032821,-155.43,0.00030183,2]
[311283007,1705017032830,-155.43,0.00030263,2]
[311283008,1705017032839,-155.43,0.00030342,2]
[311283009,1705017032848,-155.43,0.00030422,2]
[311283010,1705017032857,-155.43,0.00030501,2]
[311283011,1705017032867,-176.84,0.00030612,2]
[311283012,1705017032877,-229.12368728,0.0003085,2]
[311283013,1705017032888,-1560.0,0.00031,2]
[311283014,1705017032897,-687.67126358,0.00031038,4]
[311283015,1705017032906,-518.08,0.0003144,2]
[311283016,1705017032915,-500.0,0.000315,2]
[311283017,1705017032925,-158.3,0.00031513,2]
[311283018,1705017032935,-176.84,0.0003159,2]
[311283019,1705017032943,-165.05,0.00031644,2]
[311283020,1705017032953,-153.84,0.00031652,2]
[311283021,1705017032962,-995.6244,0.00031799,2]
[311283022,1705017032971,-41953.73051899,0.000318,2]
[311283023,1705017032985,-18008.70638101,0.000318,2]
[311283024,1705017032994,-229.12368728,0.000318,2]
[311283025,1705017033003,-36360.3682943,0.0003189,3]
[311283026,1705017033013,-500.0,0.000319,2]
[311283027,1705017033022,-11646.7938,0.000319,2]
[311283028,1705017033032,-197944.8569,0.000319,2]
[311283029,1705017033041,-1866.3407,0.000319,2]
[311283030,1705017033049,-400.0,0.00031935,2]
[311283031,1705017033059,-90900.9207358,0.0003199,3]
[311283032,1705017033068,-185.09475926,0.0003199,2]
[311283033,1705017033077,-155.0,0.00032,2]
[311283034,1705017033086,-36346.80203169,0.00032,2]
[311283035,1705017033097,-51015.49502737,0.00032,2]
[311283036,1705017033108,-2973.66988191,0.00032,2]
[311283037,1705017033120,-1058.01904931,0.00032,2]
[311283038,1705017033140,-427.10193917,0.00032,2]
[311283039,1705017033178,-250.0,0.00032,2]
[311283056,1705017037776,-499.99,0.00027168,2]
[311283057,1705017037786,-202.0,0.00030626,2]
[311283058,1705017037796,-202.0,0.00031544,3]
[311283059,1705017037806,-269.943,0.00032,2]
[311283060,1705017037924,-13918.7,0.00032,2]
[311283061,1705017037935,-903.352006,0.00032,2]
[311283062,1705017037997,-37723.18462071,0.00032,2]
[311283063,1705017038009,-27012.12405636,0.00032,2]
[311283064,1705017038022,-1661.4357072,0.00032,2]
[311283065,1705017038031,-158.73998173,0.000323,2]
[311283066,1705017038041,-600.0,0.00032372,2]
[311283067,1705017038051,-202.0,0.00032462,5]
[311283068,1705017038062,-3761.566,0.000325,5]
[311283069,1705017038071,-176.84,0.00032569,2]
[311283070,1705017038080,-152.29,0.00032576,2]
[311283071,1705017038089,-153.84,0.00032612,2]
[311283072,1705017038099,-152.29,0.00032747,2]
[311283073,1705017038108,-890.92,0.00032877,15]
[311283074,1705017038118,-152.29,0.00032919,2]
[311283075,1705017038130,-750.0,0.00033,3]
[311283076,1705017038139,-588.6228,0.00033,7]
[311283077,1705017038147,-176.05,0.00033,2]
[311283078,1705017038156,-5000.0,0.00033,15]
[311283079,1705017038166,-203.75455743,0.00033,2]
[311283081,1705017038178,-203.75455743,0.00033,2]
[311283084,1705017038188,-152.29,0.0003309,2]
[311283086,1705017038197,-152.13,0.00033173,2]
[311283088,1705017038207,-530.31943851,0.0003326,2]
[311283090,1705017038215,-161.34487123,0.0003326,4]
[311283092,1705017038225,-152.29,0.00033262,2]
[311283094,1705017038234,-2500.0,0.00033333,10]
[311283096,1705017038243,-202.0,0.0003338,7]
[311283098,1705017038252,-152.29,0.00033433,2]
[311283100,1705017038262,-185.57160075,0.00033449,4]
[311283102,1705017038272,-222.13842387,0.00033449,4]
[311283104,1705017038281,-728.29,0.00033474,2]
[311283106,1705017038291,-5000.0,0.000335,15]
[311283108,1705017038300,-800.0,0.00033519,5]
[311283110,1705017038309,-176.84,0.00033547,2]
[311283112,1705017038318,-176.05,0.00033548,2]